Cogmind - Beta 13 @@@ ROGUE MODE // 2024.03.30 @ 23:22:36 Player: Err. String Expected Got Nil Result: Destroyed by G-47 Trooper with Particle Gun Performance ------------- Evolutions (2) 1000 Regions Visited (6) 1200 Robots Destroyed (40) 200 Value Destroyed (1098) 1098 Prototype IDs (24) 480 Alien Tech Used (0) 0 Bonus (300) 300 TOTAL SCORE: 4278 Bonus ------- Aligned with FarCom 300 Cogmind --------- Core Integrity 0/550 Matter 287/300 Energy 147/150 System Corruption 3% Temperature Hot (288) Movement Walking (120) Location -8/Materials Parts ------- > --- POWER (1) -------- Micro Nuclear Core > --- PROPULSION (4) --- Carbon-fiber Leg > --- UTILITY (3) ------ Transport Network Coupler > --- WEAPON (3) ------- Heavy Laser > --- INVENTORY (5) ---- Improved Terrain Scanner System Shield Recalibrator Peak State ------------ > --- POWER ------------ Micro Nuclear Core > --- PROPULSION ------- Aluminum Leg Aluminum Leg Aluminum Leg Carbon-fiber Leg > --- UTILITY ---------- Improved Heat Sink Sensor Array Transport Network Coupler > --- WEAPON ----------- Particle Gun Heavy Laser Heavy Ion Cannon > --- INVENTORY -------- Micro Nuclear Core Improved Terrain Scanner Recalibrator Heavy Ion Cannon [Rating: 26] Favorites ----------- Power Improved Ion Engine Engine Improved Ion Engine Power Core Micro Nuclear Core Propulsion Aluminum Leg Leg Aluminum Leg Utility Transport Network Coupler Device Cooling System Processor Transport Network Coupler Protection Light Armor Plating Weapon Particle Cannon Energy Gun Particle Gun Energy Cannon Particle Cannon Ballistic Gun Heavy Assault Rifle Launcher Shock Bomb Launcher Build | -11 -10 -9 -9 -9 -8 -8 ------- Run | Yrd Mat Mat Min Exi Min Mat Slots Evolved 4 | . . 2 . . . 2 Power . | . . . . . . . Propulsion 2 | . . 1 . . . 1 Utility 1 | . . 1 . . . . Weapon 1 | . . . . . . 1 Parts Attached 47 | 5 6 9 1 1 2 23 Power 10 | 1 2 1 . . 1 5 Engine 7 | 1 2 1 . . 1 2 Core 3 | . . . . . . 3 Reactor . | . . . . . . . Propulsion 17 | 3 1 3 1 . 1 8 Treads . | . . . . . . . Leg 17 | 3 1 3 1 . 1 8 Wheel . | . . . . . . . Hover . | . . . . . . . Flight . | . . . . . . . Utility 9 | . 3 3 . 1 . 2 Device 6 | . 1 2 . 1 . 2 Storage . | . . . . . . . Processor 1 | . . 1 . . . . Hackware . | . . . . . . . Protection 2 | . 2 . . . . . Artifact . | . . . . . . . Weapon 11 | 1 . 2 . . . 8 Energy Gun 5 | . . . . . . 5 Energy Cannon 3 | . . 1 . . . 2 Ballistic Gun 2 | 1 . 1 . . . . Ballistic Cannon . | . . . . . . . Launcher 1 | . . . . . . 1 Special Weapon . | . . . . . . . Impact Weapon . | . . . . . . . Slashing Weapon . | . . . . . . . Piercing Weapon . | . . . . . . . Special Melee Weapon . | . . . . . . . Unidentified Prototypes 1 | . . . . . 1 . Corrupted Parts 1 | . . . . . . 1 System Corruption 3 | . . . . . . 3 Parts Lost 22 | . . 1 . . . 21 Power 3 | . . . . . . 3 Propulsion 6 | . . . . . . 6 Utility 5 | . . 1 . . . 4 Weapon 8 | . . . . . . 8 Highest Loss Streak 9 | . . 1 . . . 9 To Critical Strikes 1 | . . . . . . 1 Average Slot Usage (%) 90 | . 80 89 100 100 100 80 Engine 9 | . 13 11 11 11 11 5 Leg 29 | . 27 26 33 33 33 26 Device 18 | . 11 19 22 22 22 16 Processor 8 | . . 5 11 11 11 9 Protection 1 | . 12 4 . . . . Energy Gun 3 | . . . . . . 10 Energy Cannon 7 | . . 10 11 11 11 4 Ballistic Gun 8 | . 14 11 11 11 11 3 Naked Turns . | . . . . . . . Heaviest Build 27 | 5 9 19 17 18 19 27 Greatest Support 50 | 20 20 30 30 30 33 50 Greatest Overweight (x) 2 | . . . . . . 2 Average Overweight (x) . | . . . . . . . Largest Inventory Capacity 5 | 5 5 5 5 5 5 5 Average Capacity 5 | 5 5 5 5 5 5 5 Most Carried 5 | 2 1 5 5 5 5 5 Average Carried 2 | . . 1 4 4 3 2 Final Capacity 5 | 5 5 5 5 5 5 5 Final Carried 5 | . 1 5 4 5 3 3 Class Distribution -------------------- 48% | Scavenger-Mutant 27% | Scavenger-Skirmisher 24% | Mutant Dominant Class ---------------- Mutant | -10/Materials Mutant | -9/Materials Scavenger-Mutant | -9/Mines Scavenger-Mutant | -9/Exiles Scavenger-Mutant | -8/Mines Scavenger-Skirmisher | -8/Materials Resources | -11 -10 -9 -9 -9 -8 -8 ----------- Run | Yrd Mat Mat Min Exi Min Mat Matter Collected 854 | 240 52 259 16 . 29 258 Remotely . | . . . . . . . Salvage Created 1516 | 35 52 461 . . 37 931 Parts 84 | 2 4 26 . . 4 48 Haulers Intercepted 1 | . . 1 . . . . Recyclers Shooed 3 | . 2 1 . . . . Parts Field Recycled . | . . . . . . . Retrieved Matter . | . . . . . . . Parts Self-Destructed . | . . . . . . . Prevented . | . . . . . . . Kills | -11 -10 -9 -9 -9 -8 -8 ------- Run | Yrd Mat Mat Min Exi Min Mat Combat Hostiles Destroyed 30 | 1 3 7 . . 3 16 Guns 18 | 1 3 3 . . 2 9 Cannons 11 | . . 4 . . 1 6 Classes Destroyed 12 | 1 1 4 . . . 6 Worker 3 | . . . . . . 3 Builder 1 | . . . . . . 1 Tunneler 1 | . . . . . . 1 Hauler 1 | . . 1 . . . . Recycler 2 | . . 2 . . . . Mechanic 1 | . . . . . . 1 Watcher 1 | . . 1 . . . . Swarmer 9 | . 3 3 . . 3 . Grunt 16 | 1 . 3 . . . 12 Brawler 2 | . . . . . . 2 Sentry 2 | . . 1 . . . 1 Hunter 1 | . . . . . . 1 Best Kill Streak 11 | 1 3 11 . . 3 8 Combat Bots Only 6 | 1 3 4 . . 3 6 Max Kills in Single Turn 1 | 1 1 1 . . 1 1 Gunslinging . | . . . . . . . Exploded . | . . . . . . . Melee . | . . . . . . . Uniques/NPCs Destroyed . | . . . . . . . Combat | -11 -10 -9 -9 -9 -8 -8 -------- Run | Yrd Mat Mat Min Exi Min Mat Hostile Shots Fired 274 | 10 18 40 2 . 6 198 Missed 63 | 2 5 11 . . 2 43 Damage Taken 3067 | 87 102 313 22 . 36 2507 Core 657 | 46 7 42 10 . . 552 Absorbed by Shields . | . . . . . . . Regen/Repaired (Parts) 78 | . . . . . . 78 Core Remaining (%) 82 | 81 78 . . . 87 . Volleys Fired 152 | 8 22 22 2 . 3 95 Largest 3 | 1 1 2 2 . 2 3 Hottest 195 | 20 20 91 91 . 91 195 Shots Fired 260 | 8 22 44 4 . 6 176 Gun 181 | 8 22 22 2 . 3 124 Cannon 74 | . . 22 2 . 3 47 Launcher 5 | . . . . . . 5 Special . | . . . . . . . Kinetic 79 | 8 22 22 2 . 3 22 Thermal 176 | . . 22 2 . 3 149 Explosive . | . . . . . . . Electromagnetic 5 | . . . . . . 5 Robot Hit Streak 8 | 2 5 5 1 . 2 8 Robot Miss Streak 4 | 4 1 2 1 . 2 4 Penetration Max . | . . . . . . . Secondary Targets 1 | . . . . . . 1 Max Gunslinging Chain 1 | . . . . . . 1 Shots Hit Robots 157 | 3 15 25 2 . 3 109 Core Hits 62 | 2 3 11 . . 3 43 Critical Kills 1 | . . 1 . . . . Critical Parts Destroyed 1 | . 1 . . . . . Critical Strikes 4 | . 1 1 . . . 2 Burn 2 | . . . . . . 2 Meltdown 1 | . . 1 . . . . Destroy 1 | . 1 . . . . . Melee Attacks . | . . . . . . . Impact . | . . . . . . . Slashing . | . . . . . . . Piercing . | . . . . . . . Sneak Attacks . | . . . . . . . Combat Hostiles . | . . . . . . . Follow-up Attacks . | . . . . . . . Damage Inflicted 3154 | 35 193 462 40 . 73 2351 Guns 1690 | 35 193 134 . . 32 1296 Cannons 1193 | . . 328 40 . 41 784 Explosions 265 | . . . . . . 265 Melee . | . . . . . . . Ramming 6 | . . . . . . 6 Kinetic 561 | 35 193 134 . . 32 167 Thermal 2322 | . . 328 40 . 41 1913 Explosive . | . . . . . . . Electromagnetic 265 | . . . . . . 265 Impact . | . . . . . . . Slashing . | . . . . . . . Piercing . | . . . . . . . Highest Corruption 3 | . . . . . . 3 Average Corruption 3 | . . . . . . 3 Corruption Purged . | . . . . . . . Corruption Blocked . | . . . . . . . Effects 12 | . . . . . . 12 Message Errors 2 | . . . . . . 2 Matter Fused 4 | . . . . . . 4 Heat Flow Errors 4 | . . . . . . 4 Alerts 2 | . . . . . . 2 Overload Shots . | . . . . . . . Overflow Damage 56 | . . 1 . . . 55 Projectiles 55 | . . 1 . . . 54 Explosions 1 | . . . . . . 1 Melee . | . . . . . . . Knockbacks . | . . . . . . . Impact . | . . . . . . . Kinetic . | . . . . . . . Secondary . | . . . . . . . Self-Inflicted Damage 9 | . . . . . . 9 Shots 1 | . . . . . . 1 Rammed . | . . . . . . . Targets Rammed 4 | . . . . . . 4 Kicked 4 | . . . . . . 4 Crushed . | . . . . . . . Highest Temperature 435 | . . . . . . 435 Average Temperature 119 | . . . . . . 119 Received Heat Transfer 1578 | 48 . 87 12 . . 1431 Effects 2 | . . . . . . 2 Shutdowns 1 | . . . . . . 1 Energy Bleed 1 | . . . . . . 1 Siege Activations . | . . . . . . . Robots Corrupted . | . . . . . . . Combat Hostiles . | . . . . . . . Parts Fried . | . . . . . . . Impact Corruptions . | . . . . . . . Robots Melted 2 | . . 1 . . . 1 Combat Hostiles 1 | . . . . . . 1 Parts Melted 3 | . . 1 . . . 2 Heat Transferred 4588 | . . 592 74 . 74 3848 Parts Sabotaged . | . . . . . . . Parts Stolen . | . . . . . . . Parts Stripped . | . . . . . . . Power Chain Reactions . | . . . . . . . Alert | -11 -10 -9 -9 -9 -8 -8 ------- Run | Yrd Mat Mat Min Exi Min Mat Peak Influence 278 | 20 83 247 96 . 70 278 Initial 96 | . 13 34 96 . . 27 Average 110 | 2 46 148 96 . 68 136 Maximum Alert Level 1 | . . 1 . . . 1 Low Security (%) 82 | 100 100 52 100 . 100 81 Level 1 17 | . . 47 . . . 18 Level 2 . | . . . . . . . Level 3 . | . . . . . . . Level 4 . | . . . . . . . Level 5 . | . . . . . . . High Security . | . . . . . . . Max Security . | . . . . . . . Squads Dispatched 5 | . 1 1 . . . 3 Investigation 1 | . . . . . . 1 Extermination . | . . . . . . . Reinforcement 4 | . 1 1 . . . 2 Assault . | . . . . . . . Garrison . | . . . . . . . Intercept . | . . . . . . . Searches Triggered . | . . . . . . . Construction Impeded . | . . . . . . . Haulers Reinforced . | . . . . . . . Active Scanning Responses . | . . . . . . . Cargo Convoy Interrupts . | . . . . . . . Stealth | -11 -10 -9 -9 -9 -8 -8 --------- Run | Yrd Mat Mat Min Exi Min Mat Distress Signals 4 | . . 1 . . . 3 Communications Jammed . | . . . . . . . Distress Signals . | . . . . . . . Times Spotted 53 | 1 6 11 4 . 2 29 Peak Tracking Total 9 | 1 6 4 2 . 2 9 Tactical Retreats 2 | . . . . . . 2 Traps | -11 -10 -9 -9 -9 -8 -8 ------- Run | Yrd Mat Mat Min Exi Min Mat Traps Triggered 2 | . 1 . . . . 1 Indirectly . | . . . . . . . Trap Hack Attempts . | . . . . . . . Triggered . | . . . . . . . Disarmed . | . . . . . . . Reprogrammed . | . . . . . . . Reused . | . . . . . . . Traps Extracted . | . . . . . . . Installed . | . . . . . . . Triggered . | . . . . . . . Machines | -11 -10 -9 -9 -9 -8 -8 ---------- Run | Yrd Mat Mat Min Exi Min Mat Machines Disabled 3 | . . . . . . 3 Max in Single Turn 1 | . . . . . . 1 Machines Repaired . | . . . . . . . Machines Dismantled . | . . . . . . . Machines Sabotaged . | . . . . . . . Overloaded Fab Kills . | . . . . . . . Hacking | -11 -10 -9 -9 -9 -8 -8 --------- Run | Yrd Mat Mat Min Exi Min Mat Machines Accessed 10 | . . 3 . 5 . 2 Terminals 4 | . . 3 . . . 1 Fabricators . | . . . . . . . Repair Stations 1 | . . . . . . 1 Recycling Units . | . . . . . . . Scanalyzers . | . . . . . . . Garrison Access . | . . . . . . . Total Hacks 69 | . . 10 . 50 . 9 Successful 63 | . . 6 . 50 . 7 Failed 5 | . . 3 . . . 2 Catastrophic 1 | . . 1 . . . . Database Lockouts 1 | . . 1 . . . . Manual 1 | . . . . 1 . . Terminals 16 | . . 10 . . . 6 Fabricators . | . . . . . . . Repair Stations 3 | . . . . . . 3 Recycling Units . | . . . . . . . Scanalyzers . | . . . . . . . Garrison Access . | . . . . . . . Terminal Hacks 61 | . . 6 . 50 . 5 Record 57 | . . 4 . 49 . 4 Alert Level 1 | . . 1 . . . . Locate Traps 1 | . . . . . . 1 Hauler Manifests 1 | . . 1 . . . . Derelict Proto ID Bank 1 | . . . . 1 . . Fabricator Hacks . | . . . . . . . Repair Station Hacks 2 | . . . . . . 2 Scan Component 1 | . . . . . . 1 Repair 1 | . . . . . . 1 Recycling Unit Hacks . | . . . . . . . Scanalyzer . | . . . . . . . Garrison Access Hacks . | . . . . . . . Unauthorized Hacks . | . . . . . . . Terminals . | . . . . . . . Fabricators . | . . . . . . . Repair Stations . | . . . . . . . Recycling Units . | . . . . . . . Scanalyzers . | . . . . . . . Garrison Access . | . . . . . . . Data Cores Recovered . | . . . . . . . Used . | . . . . . . . Hacking Detections 5 | . . 3 . . . 2 Full Trace Events 3 | . . 1 . . . 2 Feedback Events . | . . . . . . . Feedback Blocked . | . . . . . . . Robot Schematics Acquired . | . . . . . . . Robots Built . | . . . . . . . Authchips . | . . . . . . . Time . | . . . . . . . Total Robot Build Rating . | . . . . . . . Part Schematics Acquired . | . . . . . . . Parts Built . | . . . . . . . Authchips . | . . . . . . . Time . | . . . . . . . Total Part Build Rating . | . . . . . . . Parts Repaired 1 | . . . . . . 1 Time 38 | . . . . . . 38 Parts Recycled . | . . . . . . . Recycled Matter . | . . . . . . . Retrieved Matter . | . . . . . . . Retrieved Components . | . . . . . . . Parts Scanalyzed . | . . . . . . . Part Schematics Acquired . | . . . . . . . Parts Damaged . | . . . . . . . Bothacking | -11 -10 -9 -9 -9 -8 -8 ------------ Run | Yrd Mat Mat Min Exi Min Mat Used RIF Installer . | . . . . . . . Robots Hacked . | . . . . . . . Non-combat . | . . . . . . . Combat . | . . . . . . . Robot Hacks Applied . | . . . . . . . Relay Couplers Released . | . . . . . . . Fabnet Peak Effective % . | . . . . . . . Robots Rewired . | . . . . . . . Allies Hacked . | . . . . . . . Hacks Repelled . | . . . . . . . Allies | -11 -10 -9 -9 -9 -8 -8 -------- Run | Yrd Mat Mat Min Exi Min Mat Total Allies . | . . . . . . . Largest Group . | . . . . . . . Highest-Rated Group . | . . . . . . . Highest-Rated Ally . | . . . . . . . Total Orders . | . . . . . . . Ally Attacks . | . . . . . . . Total Damage . | . . . . . . . Kills . | . . . . . . . Allies Corrupted . | . . . . . . . Allies Melted . | . . . . . . . Intel | -11 -10 -9 -9 -9 -8 -8 ------- Run | Yrd Mat Mat Min Exi Min Mat Robot Analysis Total . | . . . . . . . Derelict Logs Recovered . | . . . . . . . Drone Launches . | . . . . . . . Drone Recoveries . | . . . . . . . Exploration | -11 -10 -9 -9 -9 -8 -8 ------------- Run | Yrd Mat Mat Min Exi Min Mat Turns Passed 2261 | 93 197 307 158 621 159 726 Spaces Moved 1342 | 62 106 162 120 514 120 258 Core 18 | 18 . . . . . . Treads . | . . . . . . . Legs 1324 | 44 106 162 120 514 120 258 Wheels . | . . . . . . . Hover . | . . . . . . . Flight . | . . . . . . . Fastest Speed 50 | 50 120 120 120 120 120 120 Average Speed 120 | 99 120 120 120 120 120 124 Slowest Speed 260 | 120 120 120 120 120 120 260 Overloaded Moves . | . . . . . . . Propulsion Burnouts . | . . . . . . . Robots Hopped . | . . . . . . . Cave-ins Triggered . | . . . . . . . Exploration Rate (%) 30 | 9 24 14 38 71 32 23 Regions Visited 6 Branch Regions 3 Pre-discovered Areas 1 | . . . . 1 . . Known Exits Taken . | . . . . . . . Unknown Exits Taken 6 | 1 1 1 1 1 1 . Scrap Searched . | . . . . . . . Spaces Dug . | . . . . . . . Terrain Destroyed 7 | . . . . . . 7 Melee . | . . . . . . . Projectile 7 | . . . . . . 7 AOE . | . . . . . . . Terrain Rammed . | . . . . . . . Walls Destroyed . | . . . . . . . Machines Disabled . | . . . . . . . Actions | -11 -10 -9 -9 -9 -8 -8 --------- Run | Yrd Mat Mat Min Exi Min Mat Total 1738 | 84 152 229 130 517 130 496 Wait 139 | 5 16 22 5 2 . 89 Move 1336 | 61 105 161 119 513 119 258 Hop . | . . . . . . . Pick Up 39 | 3 2 9 1 1 2 21 Fast Attach 14 | 3 4 4 . . . 3 Attach 18 | 1 1 . . . . 16 Detach . | . . . . . . . Swap 15 | 1 1 5 1 1 2 4 Drop 21 | 2 1 6 2 . 4 6 Fire 152 | 8 22 22 2 . 3 95 Melee . | . . . . . . . Ram . | . . . . . . . Kick 4 | . . . . . . 4 Crush . | . . . . . . . Escape Stasis . | . . . . . . . Rewire . | . . . . . . . Trap . | . . . . . . . Miscellaneous . | . . . . . . . Route ------- -11/Scrapyard -10/Materials -9/Materials (discovered 2 exits: [*Min] / [*Sto]) -9/Mines -9/Exiles -8/Mines -8/Materials History --------- Turn | Location | Event 2 | -11/Scrapyard | Met Revision 17 60 | -11/Scrapyard | Discovered new exit (range 8) 94 | -11/Scrapyard | Entered Materials 266 | -10/Materials | Discovered new exit (range 15) 291 | -10/Materials | Entered another Materials area 291 | -9/Materials | Evolved 2 slots: Propulsion x1, Utility x1 300 | -9/Materials | Build established: Mutant 323 | -9/Materials | Central database locked down 531 | -9/Materials | Met 8R-AWN 559 | -9/Materials | Discovered new exit (range 14) 588 | -9/Materials | Discovered new exit (range 7) 598 | -9/Materials | Entered Mines 600 | -9/Mines | Followed 8R-AWN into the Mines 748 | -9/Mines | Assembled infested the area 751 | -9/Mines | Discovered new exit (range 5) 756 | -9/Mines | Entered Exiles 772 | -9/Exiles | Build established: Scavenger-Mutant 786 | -9/Exiles | Welcomed by 8R-AWN 815 | -9/Exiles | Met EX-HEX 869 | -9/Exiles | Met EX-DEC 892 | -9/Exiles | Learned location of Zion (-7) 948 | -9/Exiles | Discovered new exit (range 14) 1020 | -9/Exiles | Met EX-BIN 1045 | -9/Exiles | Aligned with FarCom system 1046 | -9/Exiles | Given EX-Vault access code 1177 | -9/Exiles | Opened EX-Vault 1186 | -9/Exiles | Found Skeleton Box 1212 | -9/Exiles | Warned to stay clear of 0b10 Research branches 1269 | -9/Exiles | Learned about 8R-AWN's background 1377 | -9/Exiles | Left Exiles lab with Skeleton Box 1377 | -9/Exiles | Entered Mines 1529 | -8/Mines | Discovered new exit (range 6) 1536 | -8/Mines | Entered Materials 1536 | -8/Materials | Evolved 2 slots: Propulsion x1, Weapon x1 1724 | -8/Materials | Lost 3 parts (1n2w) 1820 | -8/Materials | Core integrity fell below 50% 1857 | -8/Materials | Lost 7 parts (2n2u3w) 2155 | -8/Materials | Build established: Scavenger-Skirmisher 2177 | -8/Materials | Repaired Carbon-fiber Leg 2216 | -8/Materials | Core integrity fell below 20% 2262 | -8/Materials | Destroyed by G-47 Trooper with Particle Gun Last Messages --------------- Critical hit (Burn: +37). Aluminum Leg destroyed. Acquired Carbon-fiber Leg. Imp. Heat Sink destroyed. Destroyed Lgt. Nuclear Core. G-47 Trooper critical meltdown. Mic. Nuclear Core destroyed. Hvy. Ion Cannon destroyed. U-05 Engineer builds a Wall. Destroyed Wheel. Power failure, Mic. Nuclear Core shutdown. G-47 Trooper destroyed. Acquired 10 matter. Hvy. Ion Cannon destroyed. Overheating: Energy bleed (-13). Critical hit (Burn: +37). Acquired Hvy. Laser. System corrupted: Matter fused (-8). Destroyed Imp. Hover Unit. Sensor Array destroyed. Map ----- +----------------------------------------------------+ | ??# ?????# ## ^ #????????????????????????? | | ??? ???## ## """#????????????????????????? | | ????? ??# # ! """#????????????????????????? | | ????#+#+##a #== """#????????????????????????? | | ????# T + #????????????????????????? | | ????# #### ##########????????????????????????? | | ?????????# #?????????????????????????????????? | | ??????######/####????????????????????????????????? | | ??????# % #????????????????????????????????? | | ??????# = !#???????########?????????????????? | | ??????# #???????#* | !!#?????????????????? | | ??????# #???????#**]]!!#?????????????????? | | ??????# """ " #???????# * #?????????????????? | | ??????# """ """ #???????### #######???????????? | | ??????# """ "" !########### #???????????? | | ??????# [%/w=* #???????????? | | ??????###+#############"### #???????????? | | ????????# ????????????######+##### #???????????? | | ????????#?????????????# % #? #???????????? | | ??????????????????????# = #?? #???????????? | | ??????????????????????# %= #??? ##??????????? | | ??????????????????????# """ % #?? #??????????? | | ??????????????????????# "" " " #? #??????????? | | ??????????????????????#g " ! R" # +??????????? | | ??????????????????????# *%""" # #??????????? | | ??????????????????????# !@ # #??????????? | | ??????????????????????############ ##??????????? | | ???????????????????????##?????????w??????????????? | | ?????????????????????????????????????????????????? | | ?????????????????????????????????????????????????? | | ?????????????????????????????????????????????????? | | ?????????????????????????????????????????????????? | | ?????????????????????????????????????????????????? | | ?????????????????????????????????????????????????? | | ?????????????????????????????????????????????????? | | ?????????????????????????????????????????????????? | | ?????????????????????????????????????????????????? | | ?????????????????????????????????????????????????? | | ?????????????????????????????????????????????????? | | ?????????????????????????????????????????????????? | | ?????????????????????????????????????????????????? | | ?????????????????????????????????????????????????? | | ?????????????????????????????????????????????????? | | ?????????????????????????????????????????????????? | | ?????????????????????????????????????????????????? | | ?????????????????????????????????????????????????? | | ?????????????????????????????????????????????????? | | ?????????????????????????????????????????????????? | | ?????????????????????????????????????????????????? | | ?????????????????????????????????????????????????? | +----------------------------------------------------+ Best States ------------- Heat Dissipation 53 Energy Generation 15 Energy Capacity 280 Matter Stores 300 Matter Capacity 300 Sight Range 16 Robot Scan Range 14 Terrain Scan Density 10 Armor Coverage 150 Evasion (%) 55 Item Schematics ----------------- None Robot Schematics ------------------ None Fabricated ------------ Nothing Alien Tech Used ----------------- None Achievements -------------- It's Just You Librarian Loot Pinata Part-time Mechanic Risk Taker Tourist Uninvited Guest Challenges ------------ None Game ------ Seed RemoteHybridThrower Manual? 0 Play Time 01:04:37 Cumulative 1.4 hours Start 2024.03.30 @ 22:11:34 End 2024.03.30 @ 23:22:36 Sessions 1 Manual Loads 0 Difficulty Rogue Special Mode None Game No. 2 Rogue 2 Adventurer 0 Explorer 0 Win Type - Total 0 Types 0/0/0/0/0/0/0/0/0 Lore% 9 Gallery% 2 Achievement% 3 Wizard Run 0 Options --------- Layout 1 ASCII 0 Keyboard 0 Movement Mouse Keybinds 0 Fullscreen 2 Font 32/SmallcapsGlow Map View 50x35 Zoom Use 0% Tactical HUD 0 Map Filters NONE Filters NONE Steam 1 RUN: cc3d7300-5879-4441-8aff-98acde1ed8c2